[Event "Titled Tuesday Blitz February 01 A 2022"]
[White "Vantika, Agrawal"]
[Black "Leiva, Gianmarco"]
[WhiteFideId "25050389"]
[BlackFideId "3804399"]
[WhiteElo "2075"]
[BlackElo "2328"]
[Result "1-0"]
[Round "09"]
[TimeControl "180+1"]
[Date "2022.02.01"]
[WhiteClock "0:00:03"]
[BlackClock "0:00:01"]

1. d4 {[%clk 0:03:00]}  Nf6 {[%clk 0:02:52]} 2. c4 {[%clk 0:03:00]}  e6 {[%clk 0:02:50]} 3. Nf3 {[%clk 0:03:00]}  d5 {[%clk 0:02:50]} 4. g3 {[%clk 0:02:59]}  Be7 {[%clk 0:02:49]} 5. Bg2 {[%clk 0:02:59]}  O-O {[%clk 0:02:49]} 6. O-O {[%clk 0:02:59]}  c6 {[%clk 0:02:48]} 7. Qc2 {[%clk 0:02:58]}  b6 {[%clk 0:02:49]} 8. b3 {[%clk 0:02:57]}  Nbd7 {[%clk 0:02:45]} 9. Rd1 {[%clk 0:02:57]}  Ba6 {[%clk 0:02:45]} 10. Nbd2 {[%clk 0:02:56]}  Rc8 {[%clk 0:02:35]} 11. e4 {[%clk 0:02:55]}  c5 {[%clk 0:02:36]} 12. exd5 {[%clk 0:02:54]}  exd5 {[%clk 0:02:36]} 13. Bb2 {[%clk 0:02:54]}  b5 {[%clk 0:02:33]} 14. b4 {[%clk 0:02:52]}  cxb4 {[%clk 0:02:13]} 15. c5 {[%clk 0:02:51]}  Bb7 {[%clk 0:02:14]} 16. Nf1 {[%clk 0:02:33]}  Ne4 {[%clk 0:02:13]} 17. Ne3 {[%clk 0:02:25]}  Bf6 {[%clk 0:02:12]} 18. Qb3 {[%clk 0:02:12]}  a5 {[%clk 0:02:09]} 19. Nxd5 {[%clk 0:02:09]}  Bxd5 {[%clk 0:02:02]} 20. Qxd5 {[%clk 0:02:09]}  Ndxc5 {[%clk 0:02:02]} 21. Qf5 {[%clk 0:01:47]}  Nd6 {[%clk 0:01:55]} 22. Qg4 {[%clk 0:01:23]}  Na4 {[%clk 0:01:51]} 23. Bc1 {[%clk 0:01:19]}  Re8 {[%clk 0:01:41]} 24. Bf4 {[%clk 0:01:18]}  Nc3 {[%clk 0:01:38]} 25. Re1 {[%clk 0:01:15]}  Nc4 {[%clk 0:00:41]} 26. Ne5 {[%clk 0:01:10]}  Qxd4 {[%clk 0:00:33]} 27. Nc6 {[%clk 0:01:02]}  Qc5 {[%clk 0:00:23]} 28. Qd7 {[%clk 0:00:48]}  Rf8 {[%clk 0:00:11]} 29. Rac1 {[%clk 0:00:39]}  Nxa2 {[%clk 0:00:10]} 30. Rcd1 {[%clk 0:00:29]}  Nc3 {[%clk 0:00:10]} 31. Rd6 {[%clk 0:00:08]}  Nxd6 {[%clk 0:00:03]} 32. Bxd6 {[%clk 0:00:09]}  Qc4 {[%clk 0:00:02]} 33. Bxf8 {[%clk 0:00:09]}  Rxf8 {[%clk 0:00:02]} 34. Nxa5 {[%clk 0:00:07]}  Qc5 {[%clk 0:00:01]} 35. Nb3 {[%clk 0:00:06]}  Qc4 {[%clk 0:00:01]} 36. Na5 {[%clk 0:00:06]}  Qd4 {[%clk 0:00:01]} 37. Qc7 {[%clk 0:00:03]}  Qc4 {[%clk 0:00:01]} 38. Nxc4 {[%clk 0:00:03]}  bxc4 {[%clk 0:00:02]} 39. Qxc4 {[%clk 0:00:03]}  Rb8 {[%clk 0:00:02]} 40. Qb3 {[%clk 0:00:03]}  h6 {[%clk 0:00:01]} 41. h4 {[%clk 0:00:04]}  g5 {[%clk 0:00:02]} 42. hxg5 {[%clk 0:00:04]}  hxg5 {[%clk 0:00:02]} 43. Bd5 {[%clk 0:00:02]}  Kg7 {[%clk 0:00:03]} 44. Bxf7 {[%clk 0:00:02]}  Rb7 {[%clk 0:00:04]} 45. Be8 {[%clk 0:00:02]}  Ra7 {[%clk 0:00:05]} 46. Bd7 {[%clk 0:00:02]}  Rxd7 {[%clk 0:00:02]} 47. Qxb4 {[%clk 0:00:02]}  Nd5 {[%clk 0:00:02]} 48. Qb5 {[%clk 0:00:03]}  Rd8 {[%clk 0:00:01]} 49. Kg2 {[%clk 0:00:03]} 1-0


[Site "https://www.chess.com"]

[Event "Titled Tuesday Blitz February 01 A 2022"]
[White "Vasquez Schroeder, Rodrigo"]
[Black "Hansen, Eric"]
[WhiteFideId "3400042"]
[BlackFideId "2606771"]
[WhiteElo "2568"]
[BlackElo "2568"]
[Result "1/2-1/2"]
[Round "09"]
[TimeControl "180+1"]
[Date "2022.02.01"]
[WhiteClock "0:02:03"]
[BlackClock "0:00:45"]

1. e4 {[%clk 0:03:00]}  e5 {[%clk 0:02:57]} 2. Nf3 {[%clk 0:03:00]}  Nc6 {[%clk 0:02:57]} 3. Bc4 {[%clk 0:03:00]}  Bc5 {[%clk 0:02:56]} 4. c3 {[%clk 0:03:00]}  Nf6 {[%clk 0:02:57]} 5. d3 {[%clk 0:03:00]}  O-O {[%clk 0:02:56]} 6. O-O {[%clk 0:03:00]}  a6 {[%clk 0:02:56]} 7. Re1 {[%clk 0:03:00]}  d6 {[%clk 0:02:55]} 8. h3 {[%clk 0:02:59]}  h6 {[%clk 0:02:55]} 9. b4 {[%clk 0:02:59]}  Ba7 {[%clk 0:02:55]} 10. Nbd2 {[%clk 0:02:59]}  Ne7 {[%clk 0:02:44]} 11. Nf1 {[%clk 0:02:58]}  Ng6 {[%clk 0:02:45]} 12. Ng3 {[%clk 0:02:59]}  c6 {[%clk 0:02:44]} 13. Bb3 {[%clk 0:02:58]}  Re8 {[%clk 0:02:41]} 14. d4 {[%clk 0:02:58]}  a5 {[%clk 0:02:35]} 15. Be3 {[%clk 0:02:51]}  axb4 {[%clk 0:02:11]} 16. dxe5 {[%clk 0:02:42]}  dxe5 {[%clk 0:01:40]} 17. Qxd8 {[%clk 0:02:37]}  Rxd8 {[%clk 0:01:41]} 18. Bxa7 {[%clk 0:02:37]}  Rxa7 {[%clk 0:01:42]} 19. cxb4 {[%clk 0:02:37]}  Kf8 {[%clk 0:01:32]} 20. Red1 {[%clk 0:02:36]}  Re8 {[%clk 0:01:24]} 21. a4 {[%clk 0:02:34]}  Nf4 {[%clk 0:01:23]} 22. Rd2 {[%clk 0:02:32]}  g6 {[%clk 0:01:20]} 23. a5 {[%clk 0:02:29]}  Nh7 {[%clk 0:01:03]} 24. h4 {[%clk 0:02:22]}  Nf6 {[%clk 0:01:03]} 25. Rc1 {[%clk 0:02:21]}  Bg4 {[%clk 0:01:02]} 26. Ne1 {[%clk 0:02:18]}  Raa8 {[%clk 0:00:59]} 27. f3 {[%clk 0:02:17]}  Be6 {[%clk 0:00:52]} 28. Bxe6 {[%clk 0:02:17]}  Rxe6 {[%clk 0:00:52]} 29. Nf1 {[%clk 0:02:14]}  Re7 {[%clk 0:00:48]} 30. Ne3 {[%clk 0:02:12]}  Rd7 {[%clk 0:00:47]} 31. Rcd1 {[%clk 0:02:11]}  Rad8 {[%clk 0:00:43]} 32. Rxd7 {[%clk 0:02:03]}  Rxd7 {[%clk 0:00:44]} 33. Rxd7 {[%clk 0:02:03]}  Nxd7 {[%clk 0:00:45]} 1/2-1/2


[Site "https://www.chess.com"]

[Event "Titled Tuesday Blitz February 01 A 2022"]
[White "Weetik, Vjacheslav"]
[Black "Bacrot, Etienne"]
[WhiteFideId "4153472"]
[BlackFideId "605506"]
[WhiteElo "2469"]
[BlackElo "2673"]
[Result "0-1"]
[Round "09"]
[TimeControl "180+1"]
[Date "2022.02.01"]
[WhiteClock "0:00:19"]
[BlackClock "0:01:27"]

1. e4 {[%clk 0:02:59]}  c5 {[%clk 0:02:59]} 2. Nf3 {[%clk 0:02:59]}  Nc6 {[%clk 0:02:59]} 3. Bb5 {[%clk 0:02:58]}  g6 {[%clk 0:02:58]} 4. Bxc6 {[%clk 0:02:46]}  bxc6 {[%clk 0:02:58]} 5. O-O {[%clk 0:02:45]}  Bg7 {[%clk 0:02:56]} 6. Re1 {[%clk 0:02:45]}  e5 {[%clk 0:02:56]} 7. c3 {[%clk 0:02:17]}  Ne7 {[%clk 0:02:54]} 8. d4 {[%clk 0:02:16]}  cxd4 {[%clk 0:02:54]} 9. cxd4 {[%clk 0:02:17]}  exd4 {[%clk 0:02:54]} 10. Nxd4 {[%clk 0:01:56]}  O-O {[%clk 0:02:53]} 11. Nc3 {[%clk 0:01:56]}  Bb7 {[%clk 0:02:44]} 12. Bg5 {[%clk 0:01:51]}  h6 {[%clk 0:02:43]} 13. Be3 {[%clk 0:01:48]}  d5 {[%clk 0:02:30]} 14. Qd2 {[%clk 0:01:40]}  c5 {[%clk 0:02:03]} 15. Nb3 {[%clk 0:00:43]}  d4 {[%clk 0:02:02]} 16. Nxc5 {[%clk 0:00:43]}  dxe3 {[%clk 0:01:43]} 17. Qxe3 {[%clk 0:00:20]}  Bc6 {[%clk 0:01:30]} 18. Rad1 {[%clk 0:00:20]}  Qb6 {[%clk 0:01:29]} 19. e5 {[%clk 0:00:19]}  Nf5 {[%clk 0:01:27]} 0-1


[Site "https://www.chess.com"]

[Event "Titled Tuesday Blitz February 01 A 2022"]
[White "Wong, Yinn Long"]
[Black "Shyaamnikhil P"]
[WhiteFideId "5707684"]
[BlackFideId "5024218"]
[WhiteElo "2055"]
[BlackElo "2292"]
[Result "1-0"]
[Round "09"]
[TimeControl "180+1"]
[Date "2022.02.01"]
[WhiteClock "0:01:00"]
[BlackClock "0:01:53"]

1. e4 {[%clk 0:03:00]}  e5 {[%clk 0:02:58]} 2. Nf3 {[%clk 0:03:01]}  d6 {[%clk 0:02:59]} 3. d4 {[%clk 0:03:01]}  exd4 {[%clk 0:03:00]} 4. Nxd4 {[%clk 0:03:02]}  Nf6 {[%clk 0:02:59]} 5. Nc3 {[%clk 0:03:02]}  Be7 {[%clk 0:02:58]} 6. Bf4 {[%clk 0:03:03]}  O-O {[%clk 0:02:58]} 7. Qd2 {[%clk 0:03:03]}  Nc6 {[%clk 0:02:58]} 8. O-O-O {[%clk 0:03:03]}  Bd7 {[%clk 0:02:54]} 9. f3 {[%clk 0:03:01]}  Nxd4 {[%clk 0:02:53]} 10. Qxd4 {[%clk 0:03:01]}  Nh5 {[%clk 0:02:53]} 11. Be3 {[%clk 0:02:52]}  Bg5 {[%clk 0:02:53]} 12. g4 {[%clk 0:02:46]}  Nf4 {[%clk 0:02:47]} 13. Qd2 {[%clk 0:02:21]}  Ne6 {[%clk 0:02:44]} 14. f4 {[%clk 0:02:17]}  Bh4 {[%clk 0:02:41]} 15. Bc4 {[%clk 0:02:01]}  Bc6 {[%clk 0:02:18]} 16. g5 {[%clk 0:01:46]}  Nc5 {[%clk 0:02:11]} 17. Bxc5 {[%clk 0:01:35]}  dxc5 {[%clk 0:02:10]} 18. Qe3 {[%clk 0:01:34]}  Qc8 {[%clk 0:02:09]} 19. f5 {[%clk 0:01:21]}  h6 {[%clk 0:01:59]} 20. gxh6 {[%clk 0:01:12]}  Bf6 {[%clk 0:01:59]} 21. hxg7 {[%clk 0:01:03]}  Re8 {[%clk 0:01:53]} 22. Qh6 {[%clk 0:01:00]} 1-0


[Site "https://www.chess.com"]

[Event "Titled Tuesday Blitz February 01 A 2022"]
[White "Yeletsky, Ivan"]
[Black "Starozhilov, Leonid"]
[WhiteFideId "24180327"]
[BlackFideId "14106752"]
[WhiteElo "2348"]
[BlackElo "2414"]
[Result "1-0"]
[Round "09"]
[TimeControl "180+1"]
[Date "2022.02.01"]
[WhiteClock "0:00:48"]
[BlackClock "0:00:11"]

1. e4 {[%clk 0:03:00]}  c5 {[%clk 0:02:58]} 2. Nf3 {[%clk 0:02:59]}  e6 {[%clk 0:02:58]} 3. d4 {[%clk 0:02:59]}  cxd4 {[%clk 0:02:59]} 4. Nxd4 {[%clk 0:02:59]}  a6 {[%clk 0:02:59]} 5. a3 {[%clk 0:02:57]}  Nc6 {[%clk 0:02:56]} 6. Nc3 {[%clk 0:02:41]}  Qc7 {[%clk 0:02:48]} 7. Be3 {[%clk 0:02:34]}  Nf6 {[%clk 0:02:46]} 8. f4 {[%clk 0:02:30]}  d6 {[%clk 0:02:36]} 9. Qf3 {[%clk 0:02:29]}  Bd7 {[%clk 0:02:30]} 10. O-O-O {[%clk 0:02:25]}  Rc8 {[%clk 0:02:24]} 11. g4 {[%clk 0:02:00]}  Nxd4 {[%clk 0:02:13]} 12. Rxd4 {[%clk 0:02:00]}  Bc6 {[%clk 0:02:02]} 13. g5 {[%clk 0:01:58]}  Nd7 {[%clk 0:01:27]} 14. Bc4 {[%clk 0:01:44]}  b5 {[%clk 0:01:16]} 15. Ba2 {[%clk 0:01:43]}  Be7 {[%clk 0:01:02]} 16. h4 {[%clk 0:01:42]}  Nc5 {[%clk 0:00:51]} 17. f5 {[%clk 0:01:34]}  exf5 {[%clk 0:00:34]} 18. Qxf5 {[%clk 0:01:33]}  O-O {[%clk 0:00:34]} 19. g6 {[%clk 0:01:24]}  hxg6 {[%clk 0:00:28]} 20. Qxg6 {[%clk 0:01:24]}  d5 {[%clk 0:00:19]} 21. Qg4 {[%clk 0:00:57]}  Nxe4 {[%clk 0:00:15]} 22. Rxe4 {[%clk 0:00:47]}  dxe4 {[%clk 0:00:11]} 23. Bd4 {[%clk 0:00:48]} 1-0


[Site "https://www.chess.com"]

[Event "Titled Tuesday Blitz February 01 A 2022"]
[White "Alonso Rosell, Alvar"]
[Black "Aravindh, Chithambaram VR."]
[WhiteFideId "2270544"]
[BlackFideId "5072786"]
[WhiteElo "2518"]
[BlackElo "2561"]
[Result "0-1"]
[Round "10"]
[TimeControl "180+1"]
[Date "2022.02.01"]
[WhiteClock "0:00:01"]
[BlackClock "0:00:01"]

1. d4 {[%clk 0:02:01]}  f5 {[%clk 0:02:57]} 2. g3 {[%clk 0:01:59]}  Nf6 {[%clk 0:02:57]} 3. Bg2 {[%clk 0:02:00]}  e6 {[%clk 0:02:57]} 4. Nd2 {[%clk 0:01:59]}  d5 {[%clk 0:02:56]} 5. c4 {[%clk 0:01:56]}  c6 {[%clk 0:02:56]} 6. Nh3 {[%clk 0:01:56]}  Bd6 {[%clk 0:02:54]} 7. O-O {[%clk 0:01:56]}  O-O {[%clk 0:02:54]} 8. Qc2 {[%clk 0:01:57]}  Qe7 {[%clk 0:02:37]} 9. Nf4 {[%clk 0:01:49]}  Nbd7 {[%clk 0:02:17]} 10. Nd3 {[%clk 0:01:31]}  b6 {[%clk 0:01:53]} 11. b3 {[%clk 0:01:18]}  Bb7 {[%clk 0:01:53]} 12. Nf3 {[%clk 0:01:11]}  c5 {[%clk 0:01:40]} 13. dxc5 {[%clk 0:01:02]}  bxc5 {[%clk 0:01:41]} 14. cxd5 {[%clk 0:01:00]}  exd5 {[%clk 0:01:41]} 15. Bf4 {[%clk 0:00:59]}  Ne4 {[%clk 0:01:34]} 16. Bxd6 {[%clk 0:00:51]}  Qxd6 {[%clk 0:01:35]} 17. Rfd1 {[%clk 0:00:49]}  d4 {[%clk 0:01:22]} 18. b4 {[%clk 0:00:45]}  cxb4 {[%clk 0:00:59]} 19. Qb3+ {[%clk 0:00:44]}  Kh8 {[%clk 0:00:51]} 20. Qxb4 {[%clk 0:00:44]}  Qxb4 {[%clk 0:00:51]} 21. Nxb4 {[%clk 0:00:44]}  Nc3 {[%clk 0:00:51]} 22. Rd2 {[%clk 0:00:35]}  Nc5 {[%clk 0:00:17]} 23. Nxd4 {[%clk 0:00:32]}  Bxg2 {[%clk 0:00:15]} 24. Kxg2 {[%clk 0:00:33]}  a5 {[%clk 0:00:15]} 25. Nbc6 {[%clk 0:00:33]}  f4 {[%clk 0:00:13]} 26. Rc1 {[%clk 0:00:30]}  N5e4 {[%clk 0:00:11]} 27. Rd3 {[%clk 0:00:26]}  Nxa2 {[%clk 0:00:10]} 28. Ra1 {[%clk 0:00:22]}  fxg3 {[%clk 0:00:06]} 29. f3 {[%clk 0:00:18]}  Nc5 {[%clk 0:00:05]} 30. Ra3 {[%clk 0:00:15]}  gxh2 {[%clk 0:00:04]} 31. R3xa2 {[%clk 0:00:14]}  a4 {[%clk 0:00:05]} 32. Kxh2 {[%clk 0:00:14]}  Rae8 {[%clk 0:00:04]} 33. Kg2 {[%clk 0:00:14]}  Rf6 {[%clk 0:00:04]} 34. Rc1 {[%clk 0:00:10]}  Nb3 {[%clk 0:00:03]} 35. Nxb3 {[%clk 0:00:10]}  axb3 {[%clk 0:00:04]} 36. Rb2 {[%clk 0:00:10]}  h5 {[%clk 0:00:03]} 37. Nd4 {[%clk 0:00:08]}  Rg6+ {[%clk 0:00:04]} 38. Kf2 {[%clk 0:00:08]}  Rd6 {[%clk 0:00:03]} 39. e3 {[%clk 0:00:08]}  h4 {[%clk 0:00:02]} 40. Rxb3 {[%clk 0:00:08]}  h3 {[%clk 0:00:01]} 41. Rb5 {[%clk 0:00:08]}  Rh6 {[%clk 0:00:01]} 42. Rh1 {[%clk 0:00:07]}  Ra8 {[%clk 0:00:02]} 43. Nf5 {[%clk 0:00:07]}  Ra2+ {[%clk 0:00:01]} 44. Kg3 {[%clk 0:00:07]}  Rg2+ {[%clk 0:00:02]} 45. Kf4 {[%clk 0:00:07]}  Rh5 {[%clk 0:00:01]} 46. e4 {[%clk 0:00:05]}  Kh7 {[%clk 0:00:01]} 47. Rb7 {[%clk 0:00:04]}  h2 {[%clk 0:00:01]} 48. Ne3 {[%clk 0:00:01]}  Rg1 {[%clk 0:00:01]} 0-1


[Site "https://www.chess.com"]

[Event "Titled Tuesday Blitz February 01 A 2022"]
[White "Bellissimo, Joseph F."]
[Black "Urazayev, Arystanbek"]
[WhiteFideId "2609843"]
[BlackFideId "13709810"]
[WhiteElo "2061"]
[BlackElo "2321"]
[Result "0-1"]
[Round "10"]
[TimeControl "180+1"]
[Date "2022.02.01"]
[WhiteClock "0:00:21"]
[BlackClock "0:00:56"]

1. e4 {[%clk 0:03:00]}  c5 {[%clk 0:03:00]} 2. Nf3 {[%clk 0:03:00]}  e6 {[%clk 0:03:01]} 3. c3 {[%clk 0:03:00]}  d5 {[%clk 0:03:01]} 4. e5 {[%clk 0:02:59]}  Nc6 {[%clk 0:03:01]} 5. d4 {[%clk 0:03:00]}  Bd7 {[%clk 0:03:01]} 6. a3 {[%clk 0:03:00]}  f6 {[%clk 0:02:59]} 7. Bd3 {[%clk 0:02:57]}  fxe5 {[%clk 0:02:56]} 8. dxe5 {[%clk 0:02:57]}  Qc7 {[%clk 0:02:50]} 9. O-O {[%clk 0:02:56]}  Nxe5 {[%clk 0:02:34]} 10. Bf4 {[%clk 0:02:39]}  Nxf3+ {[%clk 0:02:29]} 11. Qxf3 {[%clk 0:02:40]}  Bd6 {[%clk 0:02:30]} 12. Qh5+ {[%clk 0:02:37]}  Kf8 {[%clk 0:02:21]} 13. Bg5 {[%clk 0:02:26]}  Nf6 {[%clk 0:02:11]} 14. Qh4 {[%clk 0:02:24]}  Kf7 {[%clk 0:02:04]} 15. f4 {[%clk 0:02:15]}  c4 {[%clk 0:02:01]} 16. Bc2 {[%clk 0:02:12]}  Qb6+ {[%clk 0:01:59]} 17. Kh1 {[%clk 0:02:01]}  Qxb2 {[%clk 0:01:59]} 18. f5 {[%clk 0:02:01]}  e5 {[%clk 0:01:48]} 19. Bd1 {[%clk 0:01:49]}  Qxa1 {[%clk 0:01:44]} 20. Bh5+ {[%clk 0:01:49]}  Ke7 {[%clk 0:01:43]} 21. Qg3 {[%clk 0:01:34]}  Kd8 {[%clk 0:01:32]} 22. Nd2 {[%clk 0:01:30]}  Qxa3 {[%clk 0:01:28]} 23. Rb1 {[%clk 0:01:18]}  Kc7 {[%clk 0:01:24]} 24. Bf3 {[%clk 0:00:58]}  Bc6 {[%clk 0:01:19]} 25. Bxf6 {[%clk 0:00:44]}  gxf6 {[%clk 0:01:20]} 26. Qg7+ {[%clk 0:00:44]}  Be7 {[%clk 0:01:19]} 27. Qf7 {[%clk 0:00:40]}  Qd6 {[%clk 0:01:16]} 28. Rd1 {[%clk 0:00:34]}  Raf8 {[%clk 0:01:15]} 29. Qh5 {[%clk 0:00:34]}  Qc5 {[%clk 0:01:11]} 30. Qh6 {[%clk 0:00:31]}  Kb8 {[%clk 0:01:09]} 31. Rb1 {[%clk 0:00:29]}  Bd6 {[%clk 0:01:06]} 32. Qg7 {[%clk 0:00:29]}  Bc7 {[%clk 0:01:03]} 33. Qh6 {[%clk 0:00:24]}  Qd6 {[%clk 0:00:59]} 34. Qe3 {[%clk 0:00:23]}  e4 {[%clk 0:00:56]} 35. Be2 {[%clk 0:00:21]}  Qxh2# {[%clk 0:00:56]} 0-1


[Site "https://www.chess.com"]

[Event "Titled Tuesday Blitz February 01 A 2022"]
[White "Bortnyk, Olexandr"]
[Black "Daneshvar, Bardiya"]
[WhiteFideId "14120828"]
[BlackFideId "12576468"]
[WhiteElo "2723"]
[BlackElo "2295"]
[Result "1-0"]
[Round "10"]
[TimeControl "180+1"]
[Date "2022.02.01"]
[WhiteClock "0:00:07"]
[BlackClock "0:00:01"]

1. e4 {[%clk 0:03:00]}  c6 {[%clk 0:02:56]} 2. c4 {[%clk 0:03:00]}  d5 {[%clk 0:02:55]} 3. cxd5 {[%clk 0:03:01]}  cxd5 {[%clk 0:02:56]} 4. exd5 {[%clk 0:03:01]}  Nf6 {[%clk 0:02:56]} 5. Qa4+ {[%clk 0:03:02]}  Nbd7 {[%clk 0:02:54]} 6. Nc3 {[%clk 0:03:02]}  g6 {[%clk 0:02:54]} 7. Nf3 {[%clk 0:03:03]}  Bg7 {[%clk 0:02:54]} 8. Bc4 {[%clk 0:03:03]}  O-O {[%clk 0:02:54]} 9. d3 {[%clk 0:03:04]}  a6 {[%clk 0:02:53]} 10. Qa3 {[%clk 0:03:04]}  Rb8 {[%clk 0:02:51]} 11. Bf4 {[%clk 0:03:04]}  Ra8 {[%clk 0:02:48]} 12. O-O {[%clk 0:03:04]}  Nh5 {[%clk 0:02:48]} 13. Bg5 {[%clk 0:02:57]}  Bf6 {[%clk 0:02:45]} 14. Bh6 {[%clk 0:02:51]}  Bg7 {[%clk 0:02:45]} 15. Bxg7 {[%clk 0:02:46]}  Nxg7 {[%clk 0:02:46]} 16. Rfe1 {[%clk 0:02:46]}  Nf5 {[%clk 0:02:46]} 17. Ne4 {[%clk 0:02:42]}  Nb6 {[%clk 0:02:26]} 18. Qb3 {[%clk 0:02:37]}  Nd6 {[%clk 0:02:17]} 19. Re3 {[%clk 0:02:08]}  Bf5 {[%clk 0:02:05]} 20. Nxd6 {[%clk 0:02:03]}  Qxd6 {[%clk 0:01:56]} 21. Rae1 {[%clk 0:02:01]}  Rfe8 {[%clk 0:01:55]} 22. Nd4 {[%clk 0:01:50]}  Bd7 {[%clk 0:01:54]} 23. Nf3 {[%clk 0:01:34]}  Na4 {[%clk 0:01:49]} 24. Qa3 {[%clk 0:01:25]}  b5 {[%clk 0:01:31]} 25. Bb3 {[%clk 0:01:12]}  b4 {[%clk 0:01:29]} 26. Qxa4 {[%clk 0:01:09]}  Bxa4 {[%clk 0:01:29]} 27. Bxa4 {[%clk 0:01:09]}  Qxd5 {[%clk 0:01:22]} 28. Bb3 {[%clk 0:01:00]}  Qd6 {[%clk 0:01:15]} 29. h4 {[%clk 0:01:00]}  Kg7 {[%clk 0:01:12]} 30. Ng5 {[%clk 0:00:54]}  e6 {[%clk 0:01:08]} 31. Rf3 {[%clk 0:00:55]}  Ra7 {[%clk 0:01:05]} 32. Ne4 {[%clk 0:00:47]}  Qd4 {[%clk 0:01:04]} 33. h5 {[%clk 0:00:34]}  Qxb2 {[%clk 0:00:58]} 34. Rh3 {[%clk 0:00:33]}  Qe5 {[%clk 0:00:47]} 35. h6+ {[%clk 0:00:33]}  Kh8 {[%clk 0:00:41]} 36. Rf3 {[%clk 0:00:20]}  f5 {[%clk 0:00:37]} 37. d4 {[%clk 0:00:20]}  Qxd4 {[%clk 0:00:28]} 38. Ng5 {[%clk 0:00:21]}  Qf6 {[%clk 0:00:26]} 39. Rg3 {[%clk 0:00:18]}  e5 {[%clk 0:00:21]} 40. Rd1 {[%clk 0:00:13]}  Rd8 {[%clk 0:00:16]} 41. Rc1 {[%clk 0:00:10]}  Rad7 {[%clk 0:00:14]} 42. Ne6 {[%clk 0:00:07]}  Re8 {[%clk 0:00:10]} 43. Re3 {[%clk 0:00:04]}  f4 {[%clk 0:00:09]} 44. Ree1 {[%clk 0:00:03]}  g5 {[%clk 0:00:07]} 45. Nc7 {[%clk 0:00:02]}  Red8 {[%clk 0:00:05]} 46. Ne6 {[%clk 0:00:02]}  Re8 {[%clk 0:00:05]} 47. Nc7 {[%clk 0:00:02]}  Rf8 {[%clk 0:00:05]} 48. Ne6 {[%clk 0:00:03]}  Qxh6 {[%clk 0:00:05]} 49. Nxf8 {[%clk 0:00:03]}  Qxf8 {[%clk 0:00:06]} 50. Rxe5 {[%clk 0:00:04]}  h6 {[%clk 0:00:07]} 51. Re6 {[%clk 0:00:04]}  Rd6 {[%clk 0:00:07]} 52. Re5 {[%clk 0:00:02]}  f3 {[%clk 0:00:07]} 53. g3 {[%clk 0:00:02]}  Qd8 {[%clk 0:00:06]} 54. Rce1 {[%clk 0:00:02]}  Kg7 {[%clk 0:00:04]} 55. Re7+ {[%clk 0:00:02]}  Kf6 {[%clk 0:00:04]} 56. Re8 {[%clk 0:00:02]}  Qc7 {[%clk 0:00:03]} 57. Rf8+ {[%clk 0:00:02]}  Kg6 {[%clk 0:00:04]} 58. Rxf3 {[%clk 0:00:03]}  Rf6 {[%clk 0:00:03]} 59. Rfe3 {[%clk 0:00:03]}  Qc5 {[%clk 0:00:03]} 60. R1e2 {[%clk 0:00:03]}  g4 {[%clk 0:00:03]} 61. Bc2+ {[%clk 0:00:04]}  Kf7 {[%clk 0:00:02]} 62. Bb3+ {[%clk 0:00:04]}  Kf8 {[%clk 0:00:03]} 63. Re8+ {[%clk 0:00:04]}  Kg7 {[%clk 0:00:03]} 64. Rg8+ {[%clk 0:00:05]}  Kh7 {[%clk 0:00:03]} 65. Rxg4 {[%clk 0:00:06]}  Qc1+ {[%clk 0:00:03]} 66. Kh2 {[%clk 0:00:06]}  Qc7 {[%clk 0:00:02]} 67. Rge4 {[%clk 0:00:06]}  Kg6 {[%clk 0:00:02]} 68. Bc2 {[%clk 0:00:05]}  Kf7 {[%clk 0:00:01]} 69. Bb3+ {[%clk 0:00:06]}  Kg6 {[%clk 0:00:02]} 70. Re7 {[%clk 0:00:06]}  Qc5 {[%clk 0:00:02]} 71. Bc2+ {[%clk 0:00:07]}  Kh5 {[%clk 0:00:01]} 72. R7e5+ {[%clk 0:00:07]} 1-0


[Site "https://www.chess.com"]

[Event "Titled Tuesday Blitz February 01 A 2022"]
[White "Bryakin, Mikhail"]
[Black "Ostrovskiy, Andrey"]
[WhiteFideId "4165314"]
[BlackFideId "14110326"]
[WhiteElo "2421"]
[BlackElo "2469"]
[Result "0-1"]
[Round "10"]
[TimeControl "180+1"]
[Date "2022.02.01"]
[WhiteClock "0:02:16"]
[BlackClock "0:01:06"]

1. d4 {[%clk 0:02:53]}  Nf6 {[%clk 0:01:39]} 2. Nd2 {[%clk 0:02:49]}  d5 {[%clk 0:01:39]} 3. g3 {[%clk 0:02:49]}  e6 {[%clk 0:01:38]} 4. Bg2 {[%clk 0:02:49]}  Be7 {[%clk 0:01:39]} 5. e4 {[%clk 0:02:47]}  O-O {[%clk 0:01:40]} 6. Ne2 {[%clk 0:02:47]}  c5 {[%clk 0:01:40]} 7. exd5 {[%clk 0:02:40]}  exd5 {[%clk 0:01:38]} 8. dxc5 {[%clk 0:02:40]}  Bxc5 {[%clk 0:01:38]} 9. O-O {[%clk 0:02:41]}  Nc6 {[%clk 0:01:37]} 10. Nb3 {[%clk 0:02:40]}  Bb6 {[%clk 0:01:37]} 11. Bg5 {[%clk 0:02:40]}  h6 {[%clk 0:01:35]} 12. Bxf6 {[%clk 0:02:39]}  Qxf6 {[%clk 0:01:36]} 13. c3 {[%clk 0:02:38]}  Bg4 {[%clk 0:01:34]} 14. Qd2 {[%clk 0:02:29]}  Rfe8 {[%clk 0:01:30]} 15. Ned4 {[%clk 0:02:23]}  Nxd4 {[%clk 0:01:27]} 16. Nxd4 {[%clk 0:02:23]}  Bxd4 {[%clk 0:01:26]} 17. Qxd4 {[%clk 0:02:22]}  Qxd4 {[%clk 0:01:24]} 18. cxd4 {[%clk 0:02:23]}  Re2 {[%clk 0:01:23]} 19. b3 {[%clk 0:02:24]}  b6 {[%clk 0:01:16]} 20. h3 {[%clk 0:02:19]}  Be6 {[%clk 0:01:15]} 21. Rfe1 {[%clk 0:02:19]}  Rd2 {[%clk 0:01:13]} 22. Red1 {[%clk 0:02:18]}  Rxd1+ {[%clk 0:01:13]} 23. Rxd1 {[%clk 0:02:19]}  Rc8 {[%clk 0:01:13]} 24. Rd2 {[%clk 0:02:19]}  Rc1+ {[%clk 0:01:13]} 25. Kh2 {[%clk 0:02:20]}  Kf8 {[%clk 0:01:12]} 26. h4 {[%clk 0:02:15]}  Ke7 {[%clk 0:01:12]} 27. Bf3 {[%clk 0:02:15]}  Kd6 {[%clk 0:01:11]} 28. h5 {[%clk 0:02:15]}  Bf5 {[%clk 0:01:08]} 29. g4 {[%clk 0:02:15]}  Be4 {[%clk 0:01:07]} 30. Kg3 {[%clk 0:02:16]}  Rc3 {[%clk 0:01:06]} 0-1


[Site "https://www.chess.com"]